bitfinex-derivatives/quotes_SOLF0:USTF0_20251109
["timestamp","ask_amount","ask_price","bid_price","bid_amount"]
[1762657351078,2.8950881,156.03,155.94,2.94]
[1762657351274,2.8950881,156.03,155.96,2.94]
[1762657351679,5.7709,156.01,155.97,3.16]
[1762657351979,5.81294449,156.01,155.97,3.2020917]
[1762657352977,5.7713,156.0,155.97,3.2020917]
[1762657355483,0.04204449,156.01,155.97,3.2020917]
[1762657357486,5.7712,156.0,155.97,3.2020917]
[1762657362588,5.7715,155.99,155.97,3.2020917]
[1762657363693,0.04204449,156.01,155.97,3.2020917]
[1762657364493,5.769,156.06,156.0,5.7708]
[1762657364786,2.8950881,156.09,156.01,3.16]
[1762657365195,5.7679,156.09,156.05,3.04]
[1762657365694,5.81315707,156.09,156.05,3.08815349]
[1762657366998,0.04525707,156.09,156.05,3.08815349]
[1762657367993,0.04525707,156.09,156.06,3.04]
[1762657371490,0.04525707,156.09,156.05,0.04815349]
[1762657372098,5.7682,156.08,156.05,0.04815349]
[1762657372297,0.04525707,156.09,156.05,0.04815349]
[1762657372496,0.04525707,156.09,156.05,3.08815349]
[1762657372897,5.81315707,156.09,156.05,3.08815349]
[1762657373099,0.04525707,156.09,156.05,3.08815349]
[1762657374000,5.7684,156.08,156.05,3.08815349]
[1762657374295,0.04525707,156.09,156.05,3.08815349]
[1762657376597,0.04525707,156.09,156.05,0.04815349]
[1762657376995,2.8950881,156.07,156.05,0.04815349]
[1762657377998,8.6636881,156.07,156.05,0.04815349]
[1762657382403,2.8950881,156.07,155.97,3.03]
[1762657382597,2.8950881,156.03,155.97,3.03]
[1762657383505,0.0448468,156.02,155.98,3.07627375]
[1762657383693,0.04081532,156.02,155.98,3.07627375]
[1762657384096,5.7709,156.01,155.98,3.07627375]
[1762657385402,0.04081532,156.02,155.98,3.07627375]
[1762657386596,0.04081532,156.02,156.01,3.03]
[1762657387505,5.769,156.06,156.02,3.03]
[1762657388006,2.8950881,156.09,156.02,3.03]
[1762657388600,0.04460744,156.07,156.04,0.0466149]
[1762657389006,5.7692,156.06,156.04,0.0466149]
[1762657389203,8.6642881,156.06,156.04,0.0466149]
[1762657392108,0.04460744,156.07,156.04,3.0766149]
[1762657393308,1.894759,156.07,156.04,3.0766149]
[1762657394003,1.85015156,156.05,156.04,3.0766149]
[1762657394208,1.85015156,156.05,156.04,0.0466149]
[1762657397097,1.85015156,156.05,155.98,3.03]
[1762657397304,1.85015156,156.01,155.98,3.03]
[1762657398011,1.89750373,156.01,155.98,3.07460557]
[1762657398412,5.7713,156.0,155.98,3.07460557]
[1762657400920,5.7713,156.0,155.98,0.04460557]
[1762657401715,1.85015156,155.99,155.98,0.04460557]
[1762657401907,5.7723,155.97,155.92,3.03]
[1762657402102,7.62245156,155.97,155.92,3.03]
[1762657402318,1.85015156,155.97,155.92,3.03]
[1762657402813,0.04787313,155.96,155.93,0.04121927]
[1762657403412,7.62325156,155.95,155.93,0.04121927]
[1762657405217,7.62325156,155.95,155.93,3.07121927]
[1762657406018,7.62325156,155.95,155.93,0.04121927]
[1762657407420,7.62325156,155.95,155.93,3.07121927]
[1762657407813,0.04787313,155.96,155.93,3.07121927]
[1762657409617,1.85015156,156.01,155.93,3.07121927]
[1762657409924,1.85015156,156.01,155.93,3.03]
[1762657410320,5.7716,155.99,155.94,3.03]
[1762657410723,0.04337313,155.98,155.96,3.03]
[1762657412124,0.04337313,155.98,155.96,8.8025]
[1762657412323,0.04337313,155.98,155.97,3.24]
[1762657412519,1.85015156,156.03,155.97,3.24]
[1762657412715,7.62025156,156.03,155.97,3.24]
[1762657412917,1.85015156,156.05,155.98,3.24]
[1762657413220,64.5,156.07,155.98,3.24]
[1762657413221,1.85015156,156.06,155.98,3.24]
[1762657413619,0.0438438,156.04,156.0,3.28069848]
[1762657413815,0.04482454,156.04,156.0,3.28069848]
[1762657414529,5.81452454,156.04,156.0,3.28069848]
[1762657415023,1.8949761,156.04,156.0,0.04069848]
[1762657416232,5.7701,156.03,156.0,0.04069848]
[1762657418024,5.7705,156.02,156.0,0.04069848]
[1762657419030,5.7705,156.02,156.0,3.28069848]
[1762657420523,0.04482454,156.04,156.0,3.28069848]
[1762657421627,5.81452454,156.04,156.0,3.28069848]
[1762657421831,0.04482454,156.04,156.0,3.28069848]
[1762657422024,5.7702,156.03,156.0,3.28069848]
[1762657422830,0.04482454,156.04,156.0,3.28069848]
[1762657423533,5.7703,156.03,156.0,3.28069848]
[1762657425236,7.62045156,156.03,156.0,3.28069848]
[1762657425831,1.85015156,156.01,156.0,3.19069848]
[1762657426226,0.04482454,156.04,156.0,3.19069848]
[1762657427537,0.04482454,156.04,156.02,3.15]
[1762657428139,0.04482454,156.04,156.03,3.15]
[1762657440349,1.85015156,156.09,156.07,3.15]
[1762657441955,1.85015156,156.09,156.08,3.12]
[1762657442551,0.04799263,156.1,156.08,8.8881]
[1762657442760,0.04799263,156.1,156.09,3.12]
[1762657445571,11.5274,156.21,156.11,3.12]
[1762657445572,1.85015156,156.15,156.11,3.12]
[1762657446663,1.89520835,156.15,156.13,3.12]
[1762657446858,1.89520835,156.15,156.11,3.16879368]
[1762657447055,7.61655156,156.13,156.11,0.04879368]
[1762657448268,5.7676,156.1,156.08,3.12]
[1762657448565,1.85015156,156.09,156.08,3.12]
[1762657449775,7.61815156,156.09,156.07,0.04156604]
[1762657450065,1.85015156,156.09,156.07,3.16156604]
[1762657451758,0.04064865,156.1,156.07,3.16156604]
[1762657451962,0.04064865,156.1,156.09,3.12]
[1762657455070,5.80834865,156.1,156.07,3.16156604]
[1762657455266,0.04064865,156.1,156.07,0.04156604]
[1762657455772,5.7678,156.09,156.07,0.04156604]
[1762657459375,2.88935804,156.08,156.0,3.12]
[1762657459671,8.65895804,156.05,156.0,3.12]
[1762657460672,0.04113025,156.04,156.03,3.12]
[1762657460864,0.0474535,156.05,156.03,3.12]
[1762657461470,2.93681154,156.05,156.02,0.04677977]
[1762657461668,0.0474535,156.05,156.02,3.16677977]
[1762657464371,11.5316,156.15,156.02,3.16677977]
[1762657464372,2.88935804,156.11,156.03,3.12]
[1762657464571,5.81805302,156.18,156.03,3.12]
[1762657464572,4.73351754,156.18,156.03,3.12]
[1762657464763,2.88935804,156.13,156.03,3.12]
[1762657465366,0.04226818,156.1,156.08,3.12]
[1762657467575,2.88935804,156.16,156.08,3.12]
[1762657467868,2.88935804,156.16,156.1,8.8874]
[1762657468472,0.04371599,156.15,156.11,3.16079286]
[1762657468671,0.04371599,156.15,156.11,0.04079286]
[1762657468879,2.88935804,156.13,156.11,0.04079286]
[1762657469266,8.65595804,156.13,156.11,0.04079286]
[1762657469977,5.7674,156.11,156.05,3.12]
[1762657470573,5.7676,156.1,156.05,3.12]
[1762657470970,0.04807445,156.09,156.06,3.1680915]
[1762657472470,0.04807445,156.09,156.06,0.0480915]
[1762657473077,5.7683,156.08,156.06,0.0480915]
[1762657473574,0.04807445,156.09,156.06,3.1380915]
[1762657474676,0.04807445,156.09,156.06,0.0480915]
[1762657474677,5.7683,156.08,156.06,0.0480915]
[1762657475469,0.04807445,156.09,156.06,0.0480915]
[1762657476677,5.7682,156.08,156.06,0.0480915]
[1762657478580,0.04807445,156.09,156.06,0.0480915]
[1762657479582,0.04807445,156.09,156.06,3.1380915]
[1762657479985,5.81597445,156.09,156.06,3.1380915]
[1762657480282,0.04807445,156.09,156.06,3.1380915]
[1762657483994,0.04807445,156.09,156.08,3.09]
[1762657486885,0.04807445,156.09,156.06,3.2880915]
[1762657487986,5.81587445,156.09,156.06,3.2880915]
[1762657488490,0.04807445,156.09,156.06,3.2880915]
[1762657489989,5.7683,156.08,156.06,0.0480915]
[1762657490186,0.04807445,156.09,156.06,0.0480915]
[1762657490580,5.7682,156.08,156.06,0.0480915]
[1762657491183,0.04807445,156.09,156.06,0.0480915]
[1762657491589,0.04807445,156.09,156.06,3.0880915]
[1762657492482,0.04807445,156.09,156.06,8.8568915]
[1762657492679,0.04807445,156.09,156.07,3.04]
[1762657500195,0.04807445,156.09,156.07,8.8084]
[1762657500392,0.04807445,156.09,156.08,3.04]
[1762657502789,0.04807445,156.09,156.06,3.2780915]
[1762657503589,0.04807445,156.09,156.06,0.0480915]
[1762657503590,5.7682,156.08,156.06,0.0480915]
[1762657504499,2.88935804,156.07,156.0,3.23]
[1762657505090,4.7272638,156.06,156.0,3.23]
[1762657505292,4.7272638,156.06,155.97,3.23]
[1762657505488,0.04556256,156.03,156.0,0.04464775]
[1762657505689,5.7705,156.02,156.0,0.04464775]
[1762657508301,0.04556256,156.03,156.0,3.27464775]
[1762657508805,5.81566256,156.03,156.0,0.04464775]
[1762657509005,0.04556256,156.03,156.0,0.04464775]
[1762657509398,5.81576256,156.03,156.0,0.04464775]
[1762657509596,0.04556256,156.03,156.0,0.04464775]
[1762657509998,5.7705,156.02,156.0,0.04464775]
[1762657510198,0.04556256,156.03,156.0,0.04464775]
[1762657510905,5.81566256,156.03,156.0,3.27464775]
[1762657511105,0.04556256,156.03,156.0,3.27464775]
[1762657517307,0.04556256,156.03,156.0,9.04564775]
[1762657517510,0.04556256,156.03,156.01,3.23]
[1762657519708,0.04556256,156.03,156.02,3.23]
[1762657520407,4.71827312,156.13,156.02,3.23]
[1762657520408,1.851018,156.11,156.03,3.23]
[1762657521018,1.851018,156.11,156.05,3.23]
[1762657521520,0.04883395,156.1,156.06,3.27615265]
[1762657521714,1.851018,156.17,156.08,1.851018]
[1762657521909,1.851018,156.17,156.09,3.23]
[1762657522409,7.616018,156.17,156.1,3.23]
[1762657522606,5.765,156.17,156.1,3.23]
[1762657522803,0.04399514,156.15,156.13,3.23]
[1762657524112,0.04399514,156.15,156.12,0.04750301]
[1762657524313,5.7662,156.14,156.12,0.04750301]
[1762657524512,1.851018,156.13,156.12,0.04750301]
[1762657525017,3.131018,156.13,156.04,3.23]
[1762657525210,1.851018,156.11,156.04,3.23]
[1762657525914,0.04766541,156.09,156.06,0.04728884]
[1762657526414,5.7683,156.08,156.06,0.04728884]
[1762657526718,0.04766541,156.09,156.06,3.27728884]
[1762657529008,0.04766541,156.09,156.08,3.23]
[1762657536716,5.81556541,156.09,156.06,3.23728884]
[1762657536914,1.89868341,156.09,156.06,0.04728884]
[1762657537107,1.851018,156.07,156.06,0.04728884]
[1762657537914,0.04766541,156.09,156.06,0.04728884]
[1762657538117,0.04766541,156.09,156.06,3.23728884]
[1762657538713,5.81556541,156.09,156.06,3.23728884]
[1762657543019,0.04766541,156.09,156.06,3.23728884]
[1762657543713,0.04766541,156.09,156.08,3.19]
[1762657544316,0.04766541,156.09,156.06,3.23728884]
[1762657547122,1.851018,156.08,156.06,3.23728884]
[1762657547321,7.619218,156.08,156.06,3.23728884]
[1762657549021,7.619218,156.08,156.06,0.04728884]
[1762657549814,7.619218,156.08,156.06,3.12728884]
[1762657550019,0.04766541,156.09,156.06,3.12728884]
[1762657554017,5.81566541,156.09,156.06,3.12728884]
[1762657555826,5.7683,156.08,156.06,0.04728884]
[1762657557629,10.10385957,156.08,156.06,0.04728884]
[1762657560324,5.7691,156.06,156.0,3.08]
[1762657560827,4.33555957,156.08,156.01,3.08]
[1762657561031,4.33555957,156.12,156.01,3.08]
[1762657561228,9.02829654,156.12,156.01,3.08]
[1762657561428,9.02829654,156.12,156.05,0.04151487]
[1762657561429,0.04160026,156.08,156.05,0.04151487]
[1762657561626,0.04160026,156.08,156.06,2.99]
[1762657566332,0.04160026,156.08,156.05,0.04151487]
[1762657566541,0.04160026,156.08,156.05,3.03151487]
[1762657567737,0.04160026,156.08,156.05,8.80071487]
[1762657567940,0.04160026,156.08,156.05,3.03151487]
[1762657568433,0.00160026,156.08,156.07,2.99]
[1762657568639,4.68249389,156.17,156.07,2.99]
[1762657568824,4.68249389,156.16,156.07,2.99]
[1762657569028,4.68249389,156.15,156.07,2.99]
[1762657569225,4.33555957,156.18,156.07,2.99]
[1762657569426,4.68311107,156.17,156.07,2.99]
[1762657569631,0.04613078,156.14,156.11,0.04705959]
[1762657570036,5.767,156.12,156.11,0.04705959]
[1762657571138,5.7683,156.08,156.06,2.99]
[1762657571528,4.68269293,156.14,156.06,2.99]
[1762657571734,4.33555957,156.15,156.06,2.99]
[1762657572139,5.7664,156.13,156.08,2.99]
[1762657572342,0.045798,156.11,156.08,2.99]
[1762657573040,0.045798,156.11,156.08,8.758]
[1762657573242,0.045798,156.11,156.09,2.99]
[1762657573441,1.84879994,156.16,156.09,2.99]
[1762657573836,5.7657,156.15,156.11,2.99]
[1762657574042,1.84879994,156.16,156.11,2.99]
[1762657574440,0.04481867,156.15,156.12,3.03777598]
[1762657575036,5.766,156.14,156.12,3.03777598]
[1762657575237,0.04481867,156.15,156.12,3.03777598]
[1762657576744,5.7661,156.14,156.12,0.04777598]
[1762657578745,5.768,156.09,156.06,2.99]
[1762657579533,14.41914694,156.16,156.06,2.99]
[1762657579534,5.7683,156.08,156.06,2.99]
[1762657579738,0.04385825,156.09,156.06,2.99]
[1762657579935,0.04329198,156.09,156.06,3.03560621]
[1762657580140,5.81119198,156.09,156.06,3.03560621]
[1762657582647,0.04329198,156.09,156.06,3.03560621]
[1762657583145,5.7682,156.08,156.06,3.03560621]
[1762657587749,5.7682,156.08,156.06,0.04560621]
[1762657591754,2.93153892,156.09,156.01,3.15]
[1762657591956,2.88824694,156.06,155.98,3.15]
[1762657592552,5.7701,156.03,155.98,3.15]
[1762657592761,0.04931514,156.02,156.0,3.15]
[1762657594059,4.67497335,156.08,156.0,8.921]
[1762657594060,2.88824694,156.08,156.0,8.921]
[1762657594355,2.88824694,156.08,156.01,3.15]
[1762657594749,2.88824694,156.08,156.02,3.15]
[1762657595148,4.67497335,156.13,155.98,11.93409157]
[1762657595149,0.04193046,156.07,156.04,3.15]
[1762657595351,0.04193046,156.07,156.04,3.19779614]
[1762657597157,0.04193046,156.07,156.05,3.15]
[1762657598058,0.04193046,156.07,156.06,3.15]
[1762657599454,2.88824694,156.14,156.07,3.15]
[1762657600355,0.04093687,156.12,156.09,0.04092436]
[1762657601752,8.65544694,156.11,156.09,0.04092436]
[1762657603660,5.7685,156.08,156.04,3.15]
[1762657604360,2.88824694,156.11,155.99,3.15]
[1762657604560,0.0482151,156.07,156.03,0.04667143]
[1762657604764,0.0482151,156.07,156.04,2.94]
[1762657606252,5.769,156.06,156.04,2.94]
[1762657611155,5.7695,156.05,156.03,0.04667143]
[1762657611557,5.7695,156.05,156.03,2.98667143]
[1762657611860,5.7695,156.05,156.03,0.04667143]
[1762657614760,5.8171151,156.07,156.03,2.98667143]
[1762657615161,0.0482151,156.07,156.03,2.98667143]
[1762657615560,5.7694,156.05,156.03,2.98667143]
[1762657615763,8.65764694,156.05,156.03,0.04667143]
[1762657620668,8.65764694,156.05,155.97,2.94]
[1762657620865,2.88824694,156.02,155.94,2.94]
[1762657621363,2.88824694,156.02,155.96,2.94]
[1762657621566,2.88824694,156.06,155.96,2.94]
[1762657621770,0.04836102,156.03,156.0,2.95]
[1762657623170,5.81846102,156.03,156.0,2.95]
[1762657623373,0.04836102,156.03,156.0,2.95]
[1762657623764,5.7705,156.02,156.0,2.95]
[1762657624974,5.7705,156.02,155.99,0.04126532]
[1762657625175,5.7705,156.02,155.99,2.99126532]
[1762657625473,0.04836102,156.03,155.99,2.99126532]
[1762657625972,0.04836102,156.03,155.99,8.76276532]
[1762657626178,0.04836102,156.03,156.0,2.95]
[1762657627274,2.88824694,156.11,156.01,2.95]
[1762657627578,2.88824694,156.14,156.01,2.95]
[1762657627768,5.7672,156.11,156.07,2.95]
[1762657628167,0.04083168,156.11,156.07,2.99886656]
[1762657629669,0.04083168,156.11,156.07,8.76726656]
[1762657629867,0.04083168,156.11,156.08,2.95]
[1762657631364,0.04083168,156.11,156.07,0.04886656]
[1762657631569,0.04083168,156.11,156.07,2.99886656]
[1762657632773,0.04083168,156.11,156.07,0.04886656]
[1762657633972,0.04083168,156.11,156.07,2.99886656]
[1762657634578,5.7676,156.1,156.07,0.04886656]
[1762657634774,0.04083168,156.11,156.07,0.04886656]
[1762657635772,2.92907862,156.11,156.07,0.04886656]
[1762657636573,8.69627862,156.11,156.07,2.99886656]
[1762657636973,2.92907862,156.11,156.07,0.04886656]
[1762657637174,2.92907862,156.11,156.01,2.95]
[1762657637370,17.37417657,156.14,156.01,2.95]
[1762657637371,2.88824694,156.08,156.01,2.95]
[1762657637568,5.7695,156.05,156.01,2.95]
[1762657637769,2.88824694,156.08,156.01,2.95]
[1762657638185,0.04619039,156.06,156.03,0.04293963]
[1762657638378,1.85126466,156.05,156.03,0.04293963]
[1762657638980,5.7699,156.04,156.03,0.04293963]
[1762657639381,1.85126466,156.05,156.03,0.04293963]
[1762657640981,7.62096466,156.05,156.03,0.04293963]
[1762657642583,1.85126466,156.05,155.97,2.95]
[1762657642785,7.62236466,156.01,155.97,2.95]
[1762657643178,1.85126466,156.01,155.97,2.95]
[1762657643377,5.7713,156.0,155.97,2.95]
[1762657643573,1.85126466,156.01,155.97,2.95]
[1762657643774,0.04760398,156.0,155.97,2.99256982]
[1762657643980,0.0447891,156.0,155.97,2.99765189]
[1762657644681,0.0447891,156.0,155.98,2.95]
[1762657647478,0.0447891,156.0,155.99,2.95]
[1762657651177,0.0447891,156.0,155.98,2.95]
[1762657653195,0.0447891,156.0,155.99,3.21]
[1762657654293,1.85126466,156.06,156.02,3.21]
[1762657654491,1.85126466,156.08,156.02,3.21]
[1762657654794,7.61956466,156.08,156.04,3.21]
[1762657654993,5.7683,156.08,156.04,3.21]
[1762657655188,1.85126466,156.12,156.04,3.21]
[1762657655387,1.85126466,156.12,156.02,1.85126466]
[1762657655388,5.81467919,156.1,156.06,3.2570552]
[1762657657787,1.89834385,156.1,156.06,0.0470552]
[1762657658894,1.89834385,156.1,156.06,3.2570552]
[1762657659091,5.7683,156.08,156.06,3.2570552]
[1762657659595,5.7683,156.08,156.06,0.0470552]
[1762657659791,7.61956466,156.08,156.06,0.0470552]
[1762657659989,1.85126466,156.08,156.06,0.0470552]
[1762657660300,1.89834385,156.1,156.06,0.0470552]
[1762657660892,5.7679,156.09,156.06,3.2570552]
[1762657661288,5.7683,156.08,156.06,3.2570552]
[1762657661491,1.89834385,156.1,156.06,3.2570552]
[1762657663000,5.7679,156.09,156.06,3.2570552]
[1762657663394,1.89834385,156.1,156.06,3.2570552]
[1762657664100,5.7683,156.08,156.06,3.2570552]
[1762657664599,1.89834385,156.1,156.06,3.2570552]
[1762657665888,0.04707919,156.1,156.06,3.2570552]
[1762657667199,5.81467919,156.1,156.06,3.2570552]
[1762657667401,0.04707919,156.1,156.06,3.2570552]
[1762657667598,1.89834385,156.1,156.06,0.0470552]
[1762657667802,1.85126466,156.08,156.06,0.0470552]
[1762657668299,7.61976466,156.08,156.06,0.0470552]
[1762657669403,7.61976466,156.08,156.0,3.0]
[1762657669404,5.7701,156.03,156.0,3.0]
[1762657669594,1.85126466,156.05,156.0,3.0]
[1762657669799,1.85126466,156.03,155.95,3.0]
[1762657670109,5.7712,156.0,155.96,3.0]
[1762657670407,5.7712,156.0,155.96,3.0490582]
[1762657670606,5.8156142,156.0,155.96,3.0490582]
[1762657675211,0.0444142,156.0,155.96,3.0490582]
[1762657678805,5.8157142,156.0,155.96,3.0490582]
[1762657680312,0.0444142,156.0,155.96,3.0490582]
[1762657681916,0.0444142,156.0,155.96,8.8216582]
[1762657682110,0.0444142,156.0,155.97,3.24]
[1762657683516,0.0444142,156.0,155.99,3.24]
[1762657683908,9.11563442,156.11,156.0,5.7709]
[1762657684108,5.7687,156.07,156.01,3.24]
[1762657684510,1.85126466,156.09,156.03,3.24]
[1762657684915,5.7691,156.06,156.04,0.04760862]
[1762657685911,1.85126466,156.07,156.04,0.04760862]
[1762657686622,5.7691,156.06,156.04,0.04760862]
[1762657687223,1.85126466,156.05,156.0,3.24]
[1762657687421,1.85126466,156.05,155.97,3.24]
[1762657688221,0.04486626,156.03,155.99,3.28487002]
[1762657689022,5.771,156.01,155.99,3.28487002]
[1762657689719,5.771,156.01,155.99,0.04487002]
[1762657692824,0.04486626,156.03,155.99,3.28487002]
[1762657694024,5.81496626,156.03,155.99,3.28487002]
[1762657694818,0.04486626,156.03,155.99,5.13613468]
[1762657695021,0.04486626,156.03,156.0,3.24]
[1762657695515,0.04486626,156.03,156.02,3.24]
[1762657696623,253.31359776,156.15,156.04,3.24]
[1762657696825,1.85126466,156.16,156.07,3.24]
[1762657697615,0.04762519,156.13,156.11,3.24]
[1762657706130,0.04762519,156.13,156.1,0.04283103]
[1762657706131,5.7669,156.12,156.1,0.04283103]
[1762657706631,5.7688,156.07,156.04,3.24]
[1762657707024,2.88784469,156.11,155.98,3.24]
[1762657707224,11.5331,156.13,155.98,3.24]
[1762657707225,2.88784469,156.08,155.98,3.24]
[1762657707734,2.88784469,156.08,155.94,2.88784469]
[1762657707735,0.04351087,156.05,156.01,3.28324936]
[1762657708734,0.04351087,156.05,156.01,0.04324936]
[1762657709128,5.7702,156.03,156.01,3.28324936]
[1762657709323,0.04351087,156.05,156.01,3.28324936]
[1762657710332,5.81301087,156.05,156.01,3.28324936]
[1762657710538,0.04351087,156.05,156.01,3.28324936]
[1762657710928,0.04351087,156.05,156.03,3.24]
[1762657711736,5.7674,156.11,156.04,3.24]
[1762657712738,5.7674,156.11,156.01,7.38690717]
[1762657712739,0.04874292,156.09,156.07,3.24]
[1762657714238,5.7664,156.13,156.08,3.24]
[1762657714433,5.7658,156.15,156.08,3.24]
[1762657715132,5.7661,156.14,156.08,3.24]
[1762657715337,0.04793888,156.13,156.11,3.24]
[1762657715536,0.0438614,156.14,156.11,3.24]
[1762657715835,0.04545154,156.14,156.11,3.28167214]
[1762657716730,5.7665,156.13,156.11,3.28167214]
[1762657720043,5.7665,156.13,156.11,0.04167214]
[1762657721041,0.04545154,156.14,156.04,3.24]
[1762657721348,23.90079152,156.16,156.01,3.24]
[1762657721545,4.66079152,156.15,156.01,3.24]
[1762657721937,5.769,156.06,156.01,3.24]
[1762657722248,0.04561717,156.05,156.02,0.04754721]
[1762657722442,0.04153148,156.05,156.02,3.28240613]
[1762657722746,5.81103148,156.05,156.02,3.28240613]
[1762657722939,0.04153148,156.05,156.02,3.28240613]
[1762657724038,5.7698,156.04,156.02,3.28240613]
[1762657726145,5.7698,156.04,156.02,0.04240613]
[1762657731056,5.7698,156.04,155.94,2.89279737]
[1762657731057,5.7715,156.0,155.95,3.11]
[1762657731442,8.66259737,156.04,155.95,3.11]
[1762657731651,5.7698,156.04,155.95,3.11]
[1762657731843,0.04133732,156.01,155.99,3.11]
[1762657735057,0.04133732,156.01,155.99,8.8814]
[1762657735256,2.89279737,156.1,156.0,3.11]
[1762657735746,2.89279737,156.1,156.01,3.11]
[1762657736151,0.04331463,156.07,156.04,0.04076801]
[1762657736948,5.81201463,156.07,156.04,3.15076801]
[1762657738146,0.04331463,156.07,156.04,3.15076801]
[1762657741154,5.7691,156.06,156.04,3.15076801]
[1762657742862,5.7691,156.06,156.04,0.04076801]
[1762657743055,0.04331463,156.07,156.04,3.09076801]
[1762657746255,5.7691,156.06,156.04,0.04076801]
[1762657760466,1.85100355,156.05,156.04,0.04076801]
[1762657760864,1.89431818,156.07,156.04,3.09076801]
[1762657761063,1.89431818,156.07,156.04,0.04076801]
[1762657761772,5.7691,156.06,156.04,0.04076801]
[1762657762071,1.85100355,156.05,156.04,0.04076801]
[1762657762968,1.85100355,156.05,156.04,3.09076801]
[1762657763172,1.89431818,156.07,156.04,3.09076801]
[1762657764060,0.04331463,156.07,156.05,3.05]
[1762657765072,0.04331463,156.07,156.06,3.05]
[1762657765470,1.85100355,156.11,156.07,3.05]
[1762657766572,1.85100355,156.09,156.07,3.09759589]
[1762657768270,1.85100355,156.09,156.07,0.04759589]
[1762657769375,1.85100355,156.09,156.07,3.09759589]
[1762657770678,1.89768661,156.11,156.07,3.09759589]
[1762657771269,0.04668306,156.11,156.07,3.09759589]
[1762657771773,0.04668306,156.11,156.09,3.18]
[1762657771975,0.04668306,156.11,156.08,3.18]
[1762657772276,1.89768661,156.11,156.08,3.18]
[1762657773067,5.7676,156.1,156.08,3.18]
[1762657774380,5.7679,156.09,156.07,3.22759589]
[1762657775287,0.04668306,156.11,156.07,3.22759589]
[1762657776084,0.04668306,156.11,156.08,3.18]
[1762657777969,5.81378306,156.11,156.08,3.18]
[1762657781576,0.04668306,156.11,156.08,3.18]
[1762657782476,5.81388306,156.11,156.08,3.18]
[1762657783883,5.7676,156.1,156.08,3.18]
[1762657785275,0.04668306,156.11,156.08,3.18]
[1762657786776,5.81388306,156.11,156.08,3.18]
[1762657787176,5.81388306,156.11,156.09,2.95]
[1762657787977,0.04668306,156.11,156.09,2.95]
[1762657788487,0.04668306,156.11,156.1,2.95]
[1762657806898,1.85100355,156.15,156.12,2.99]
[1762657807987,7.65745128,156.15,156.12,3.0356754]
[1762657809395,0.04074773,156.15,156.13,2.99]
[1762657810198,0.04074773,156.15,156.14,2.99]
[1762657813797,1.89175128,156.15,156.12,3.0356754]
[1762657814004,1.85100355,156.13,156.12,3.0356754]
[1762657815105,1.89175128,156.15,156.12,3.0356754]
[1762657815499,0.04074773,156.15,156.12,3.0356754]
[1762657815705,1.89175128,156.15,156.12,3.0356754]
[1762657816795,7.65745128,156.15,156.12,3.0356754]
[1762657817207,1.85100355,156.13,156.12,3.0356754]
[1762657821304,5.7669,156.12,156.06,2.99]
[1762657821605,1.85100355,156.13,156.06,2.99]
[1762657821906,1.85100355,156.13,156.07,2.99]
[1762657822298,0.04157696,156.12,156.07,2.99]
[1762657822499,0.04157696,156.12,156.09,2.99]
[1762657822704,0.04118365,156.12,156.09,2.99]
[1762657824611,5.80798365,156.12,156.09,2.99]
[1762657825307,0.04118365,156.12,156.09,2.99]
[1762657828107,0.04118365,156.12,156.11,2.99]
[1762657828413,2.88952186,156.17,156.11,2.99]
[1762657829514,0.04566257,156.16,156.13,2.99]
[1762657829710,0.04666152,156.16,156.13,2.99]
[1762657830012,5.7657,156.15,156.13,2.99]
[1762657830706,0.04666152,156.16,156.13,2.99]
[1762657832408,0.04666152,156.16,156.12,3.23296377]
[1762657832811,5.7661,156.14,156.12,3.23296377]
[1762657833310,5.7661,156.14,156.12,0.04296377]
[1762657834311,5.7661,156.14,156.12,3.23296377]
[1762657838616,5.7661,156.14,156.12,0.04296377]
[1762657840020,7.61584642,156.13,156.05,3.19]
[1762657840218,2.88952186,156.13,156.05,8.9593]
[1762657840722,2.88952186,156.13,156.06,3.19]
[1762657840914,8.72707397,156.16,156.08,0.04521962]
[1762657840915,2.88952186,156.1,156.08,0.04521962]
[1762657841110,2.88952186,156.1,156.07,0.04618144]
[1762657841718,0.04242601,156.11,156.07,0.04618144]